fUSD/lending_fUSD_20241202
["ID","MTS","AMOUNT","RATE_DAILY","PERIOD"]
[343986887,1733169775198,-246.6,0.00025273,120]
[343986888,1733169775240,-758.69,0.00025273,120]
[343986889,1733169775282,-500.0,0.00025273,120]
[343986890,1733169775322,-1427.38,0.00025273,120]
[343986891,1733169775363,-500.0,0.00025273,120]
[343986892,1733169775407,-241.5,0.00025273,120]
[343986893,1733169775450,-500.0,0.00025273,120]
[343986894,1733169775497,-500.0,0.00025273,120]
[343986895,1733169775547,-514.92,0.00025273,120]
[343986896,1733169775595,-500.0,0.00025273,120]
[343986897,1733169775643,-598.57,0.00025273,120]
[343986898,1733169775700,-500.0,0.00025273,120]
[343986899,1733169775749,-500.0,0.00025273,120]
[343986900,1733169775801,-500.0,0.00025273,120]
[343986901,1733169775851,-151.92,0.00025273,120]
[343986902,1733169775900,-641.63,0.00025273,120]
[343986903,1733169775949,-500.0,0.00025273,120]
[343986904,1733169775998,-500.0,0.00025273,120]
[343986905,1733169776046,-500.0,0.00025273,120]
[343986906,1733169776096,-500.0,0.00025273,120]
[343986907,1733169776160,-1447.48,0.00025273,120]
[343986908,1733169776212,-4272.24,0.00025273,120]
[343986909,1733169776261,-560.78,0.00025273,120]
[343986910,1733169776309,-500.0,0.00025273,120]
[343986911,1733169776356,-736.23,0.00025273,120]
[343986912,1733169776412,-667.49,0.00025273,120]
[343986913,1733169776472,-500.0,0.00025273,120]
[343986914,1733169776550,-844.39,0.00025273,120]
[343986915,1733169776603,-2263.66,0.00025273,120]
[343986916,1733169776658,-500.0,0.00025273,120]
[343986917,1733169776706,-3364.95,0.00025273,120]
[343986918,1733169776753,-500.0,0.00025273,120]
[343986919,1733169776802,-2452.77,0.00025273,120]
[343986920,1733169776847,-563.29,0.00025273,120]
[343986921,1733169776891,-500.0,0.00025273,120]
[343986922,1733169776952,-500.0,0.00025273,120]
[343986923,1733169776998,-1715.81,0.00025273,120]
[343986924,1733169777045,-610.86,0.00025273,120]
[343986925,1733169777091,-309.21683694,0.00025273,120]
[343986926,1733169777137,-500.0,0.00025273,120]
[343986927,1733169777192,-617.47,0.00025273,120]
[343986928,1733169777236,-500.0,0.00025273,120]
[343986929,1733169777280,-500.0,0.00025273,120]
[343986930,1733169777323,-539.85,0.00025273,120]
[343986931,1733169777367,-500.0,0.00025273,120]
[343986932,1733169777411,-213.26,0.00025273,120]
[343986933,1733169777455,-1059.98,0.00025273,120]
[343986934,1733169777499,-500.0,0.00025273,120]
[343986935,1733169777544,-2422.49,0.00025273,120]
[343986936,1733169777590,-500.0,0.00025273,120]
[343986937,1733169777636,-500.0,0.00025273,120]
[343986938,1733169777684,-500.0,0.00025273,120]
[343986939,1733169777731,-1790.06,0.00025273,120]
[343986940,1733169777775,-500.0,0.00025273,120]
[343986941,1733169777817,-500.0,0.00025273,120]
[343986942,1733169777858,-1103.76,0.00025273,120]
[343986943,1733169777902,-500.0,0.00025273,120]
[343986944,1733169777945,-500.0,0.00025273,120]
[343986945,1733169777988,-1000.34,0.00025273,120]
[343986946,1733169778032,-581.44,0.00025273,120]
[343986947,1733169778076,-500.0,0.00025273,120]
[343986948,1733169778118,-1289.89,0.00025273,120]
[343986949,1733169778160,-500.0,0.00025273,120]
[343986950,1733169778204,-2192.16,0.00025273,120]
[343986951,1733169778247,-500.0,0.00025273,120]
[343986952,1733169778293,-500.0,0.00025273,120]
[343986953,1733169778337,-500.0,0.00025273,120]
[343986954,1733169778382,-1228.74,0.00025273,120]
[343986955,1733169778431,-247.83,0.00025273,120]
[343986956,1733169778895,-957.9,0.00025273,120]
[343986957,1733169778941,-780.49,0.00025273,120]
[343986958,1733169778986,-372.69,0.00025273,120]
[343986959,1733169779023,-500.0,0.00025273,120]
[343986960,1733169779062,-2513.91,0.00025273,120]
[343986961,1733169779100,-500.0,0.00025273,120]
[343986962,1733169779140,-500.0,0.00025273,120]
[343986963,1733169779186,-1177.37,0.00025273,120]
[343986964,1733169779224,-500.0,0.00025273,120]
[343986965,1733169779264,-1711.39,0.00025273,120]
[343986966,1733169779306,-500.0,0.00025273,120]
[343986967,1733169779345,-500.0,0.00025273,120]
[343986968,1733169779384,-13756.05,0.00025273,120]
[343986969,1733169779424,-500.0,0.00025273,120]
[343986970,1733169779465,-171.16,0.00025273,120]
[343986971,1733169779504,-500.0,0.00025273,120]
[343986972,1733169779545,-1223.82,0.00025273,120]
[343986973,1733169779586,-19783.26,0.00025273,120]
[343986974,1733169779629,-814.1,0.00025273,120]
[343986975,1733169779671,-1144.32,0.00025273,120]
[343986976,1733169779711,-500.0,0.00025273,120]
[343986977,1733169779750,-151.47,0.00025273,120]
[343986978,1733169779788,-566.12,0.00025273,120]
[343986979,1733169779825,-500.0,0.00025273,120]
[343986980,1733169779864,-500.0,0.00025273,120]
[343986981,1733169779904,-3463.96,0.00025273,120]
[343986982,1733169779943,-2471.59,0.00025273,120]
[343986983,1733169779981,-628.23,0.00025273,120]
[343986984,1733169780021,-4111.41,0.00025273,120]
[343986985,1733169780063,-316.57,0.00025273,120]
[343986986,1733169780102,-500.0,0.00025273,120]
[343986987,1733169780141,-593.51,0.00025273,120]
[343986988,1733169780184,-607.8,0.00025273,120]
[343986989,1733169780223,-2015.47,0.00025273,120]
[343986990,1733169780263,-500.0,0.00025273,120]
[343986991,1733169780303,-500.0,0.00025273,120]
[343986992,1733169780343,-2902.34,0.00025273,120]
[343986993,1733169780383,-21330.27,0.00025273,120]
[343986994,1733169780426,-199.28,0.00025273,120]
[343986995,1733169780470,-500.0,0.00025273,120]
[343986996,1733169780511,-898.43,0.00025273,120]
[343986997,1733169780554,-3255.42,0.00025273,120]
[343986998,1733169780596,-500.56,0.00025273,120]
[343986999,1733169780642,-500.0,0.00025273,120]
[343987000,1733169780685,-938.21,0.00025273,120]
[343987001,1733169780727,-500.0,0.00025273,120]
[343987002,1733169780764,-599.12,0.00025273,120]
[343987003,1733169780801,-500.0,0.00025273,120]
[343987004,1733169780837,-500.0,0.00025273,120]
[343987005,1733169780875,-500.0,0.00025273,120]
[343987006,1733169780912,-390.84,0.00025273,120]
[343987007,1733169780951,-3352.32,0.00025273,120]
[343987008,1733169780989,-500.0,0.00025273,120]
[343987009,1733169781029,-500.0,0.00025273,120]
[343987010,1733169781066,-500.0,0.00025273,120]
[343987011,1733169781104,-768.34,0.00025273,120]
[343987012,1733169781142,-170.16,0.00025273,120]
[343987013,1733169781182,-775.22,0.00025273,120]
[343987014,1733169781219,-500.0,0.00025273,120]
[343987015,1733169781258,-500.0,0.00025273,120]
[343987016,1733169781296,-500.0,0.00025273,120]
[343987017,1733169781334,-944.8,0.00025273,120]
[343987018,1733169781372,-1636.96,0.00025273,120]
[343987019,1733169781413,-1458.9,0.00025273,120]
[343987020,1733169781450,-500.0,0.00025273,120]
[343987021,1733169781487,-627.27,0.00025273,120]
[343987022,1733169781597,-500.0,0.00025273,120]
[343987023,1733169781641,-670.62,0.00025273,120]
[343987024,1733169781685,-491.93,0.00025273,120]
[343987025,1733169781725,-923.85,0.00025273,120]
[343987026,1733169781762,-500.0,0.00025273,120]
[343987027,1733169781798,-500.0,0.00025273,120]
[343987028,1733169781833,-698.71,0.00025273,120]
[343987029,1733169781867,-3466.98,0.00025273,120]
[343987030,1733169781902,-500.0,0.00025273,120]
[343987031,1733169781936,-500.0,0.00025273,120]
[343987032,1733169781971,-500.0,0.00025273,120]
[343987033,1733169782005,-579.43,0.00025273,120]
[343987034,1733169782038,-1512.19,0.00025273,120]
[343987035,1733169782071,-500.0,0.00025273,120]
[343987036,1733169782104,-500.0,0.00025273,120]
[343987037,1733169782137,-500.0,0.00025273,120]
[343987038,1733169782175,-592.57,0.00025273,120]
[343987039,1733169782210,-500.0,0.00025273,120]
[343987040,1733169782248,-500.0,0.00025273,120]
[343987041,1733169782283,-557.17,0.00025273,120]
[343987042,1733169782317,-6797.27,0.00025273,120]
[343987043,1733169782352,-1560.09,0.00025273,120]
[343987044,1733169782387,-314.89,0.00025273,120]
[343987045,1733169782426,-676.63,0.00025273,120]
[343987046,1733169782462,-4584.49,0.00025273,120]
[343987047,1733169782500,-500.0,0.00025273,120]
[343987048,1733169782536,-500.0,0.00025273,120]
[343987049,1733169782576,-2820.52,0.00025273,120]
[343987050,1733169782618,-3000.0,0.00025273,120]
[343987051,1733169782659,-1361.04,0.00025273,120]
[343987052,1733169782699,-2781.44,0.00025273,120]
[343987053,1733169782737,-1258.23,0.00025273,120]
[343987054,1733169782777,-500.0,0.00025273,120]
[343987055,1733169782818,-500.0,0.00025273,120]
[343987056,1733169782857,-2650.17,0.00025273,120]
[343987057,1733169782893,-3300.64,0.00025273,120]
[343987058,1733169782929,-2017.79,0.00025273,120]
[343987059,1733169782964,-500.0,0.00025273,120]
[343987060,1733169783001,-1286.34,0.00025273,120]
[343987061,1733169783039,-500.0,0.00025273,120]
[343987062,1733169783076,-500.0,0.00025273,120]
[343987063,1733169783114,-1387.45,0.00025273,120]
[343987064,1733169783156,-500.0,0.00025273,120]
[343987065,1733169783202,-3693.67,0.00025273,120]
[343987066,1733169783244,-500.0,0.00025273,120]
[343987067,1733169783294,-500.0,0.00025273,120]
[343987068,1733169783345,-500.0,0.00025273,120]
[343987069,1733169783387,-3023.16,0.00025273,120]
[343987070,1733169783445,-1193.08,0.00025273,120]
[343987071,1733169783495,-500.0,0.00025273,120]
[343987072,1733169783538,-3240.77,0.00025273,120]
[343987073,1733169783590,-576.52,0.00025273,120]
[343987074,1733169783635,-511.39,0.00025273,120]
[343987075,1733169783684,-2236.02,0.00025273,120]
[343987076,1733169783729,-500.0,0.00025273,120]
[343987077,1733169783773,-1679.56,0.00025273,120]
[343987078,1733169783823,-655.53,0.00025273,120]
[343987079,1733169783874,-500.0,0.00025273,120]
[343987080,1733169783922,-406.88,0.00025273,120]
[343987081,1733169783970,-171.71,0.00025273,120]
[343987082,1733169784020,-500.0,0.00025273,120]
[343987083,1733169784064,-1614.33,0.00025273,120]
[343987084,1733169784106,-500.0,0.00025273,120]
[343987085,1733169784151,-1505.75,0.00025273,120]
[343987086,1733169784201,-500.0,0.00025273,120]
[343987087,1733169784253,-500.0,0.00025273,120]
[343987088,1733169784296,-500.0,0.00025273,120]
[343987089,1733169784348,-500.0,0.00025273,120]
[343987090,1733169784391,-500.0,0.00025273,120]
[343987091,1733169784440,-500.0,0.00025273,120]
[343987092,1733169784483,-4468.06,0.00025273,120]
[343987093,1733169784538,-500.0,0.00025547,120]
[343987094,1733169784581,-679.68,0.00025547,120]
[343987095,1733169784624,-500.0,0.00025547,120]
[343987096,1733169784665,-500.0,0.00025547,120]
[343987097,1733169784714,-500.0,0.00025547,120]
[343987098,1733169784761,-526.93,0.00025547,120]
[343987099,1733169784803,-500.0,0.00025547,120]
[343987100,1733169784842,-2317.22,0.00025547,120]
[343987101,1733169784885,-500.0,0.00025547,120]
[343987102,1733169784930,-500.0,0.00025547,120]
[343987103,1733169784969,-500.0,0.00025547,120]
[343987104,1733169785012,-500.0,0.00025547,120]
[343987105,1733169785053,-500.0,0.00025547,120]
[343987106,1733169785093,-800.64,0.00025547,120]
[343987107,1733169785132,-1036.58,0.00025547,120]
[343987108,1733169785181,-633.81,0.00025547,120]
[343987109,1733169785221,-2205.66,0.00025547,120]
[343987110,1733169785263,-500.0,0.00025547,120]
[343987111,1733169785305,-1047.46,0.00025547,120]
[343987112,1733169785346,-5481.99,0.00025547,30]
[343987113,1733169785387,-758.69,0.00025547,120]
[343987114,1733169785432,-500.0,0.00025547,120]
[343987115,1733169785473,-1427.38,0.00025547,120]
[343987116,1733169785514,-204.90661573,0.00025547,120]
[343987117,1733169785694,-500.0,0.00025547,120]
[343987118,1733169785734,-500.0,0.00025547,120]
[343987119,1733169785772,-514.92,0.00025547,120]
[343987120,1733169785813,-499.10954739,0.00025547,120]
[343987121,1733169785854,-233.52102463,0.00025547,120]
[343987122,1733169785909,-641.63,0.00025547,120]
[343987123,1733169785948,-500.0,0.00025547,120]
[343987124,1733169785988,-500.0,0.00025547,120]
[343987125,1733169786032,-500.0,0.00025547,120]
[343987126,1733169786077,-500.0,0.00025547,120]
[343987127,1733169786116,-1447.48,0.00025547,120]
[343987128,1733169786156,-4272.24,0.00025547,120]
[343987129,1733169786194,-560.78,0.00025547,120]
[343987130,1733169786231,-736.23,0.00025547,120]
[343987131,1733169786267,-667.49,0.00025547,120]
[343987132,1733169786304,-500.0,0.00025547,120]
[343987133,1733169786341,-844.39,0.00025547,120]
[343987134,1733169786377,-2263.66,0.00025547,120]
[343987135,1733169786414,-3364.95,0.00025547,120]
[343987136,1733169786450,-500.0,0.00025547,120]
[343987137,1733169786489,-2452.77,0.00025547,120]
[343987138,1733169786529,-563.29,0.00025547,120]
[343987139,1733169786572,-500.0,0.00025547,120]
[343987140,1733169786613,-500.0,0.00025547,120]
[343987141,1733169786659,-1715.81,0.00025547,120]
[343987142,1733169786700,-638.10737347,0.00025547,120]
[343987143,1733169786740,-500.0,0.00025547,120]
[343987144,1733169786780,-539.85,0.00025547,120]
[343987145,1733169786817,-175.2,0.00025547,120]
[343987146,1733169786855,-1059.98,0.00025547,120]
[343987147,1733169786893,-500.0,0.00025547,120]
[343987148,1733169786933,-2422.49,0.00025547,120]
[343987149,1733169786969,-500.0,0.00025547,120]
[343987150,1733169787007,-500.0,0.00025547,120]
[343987151,1733169787044,-1790.06,0.00025547,120]
[343987152,1733169787081,-189.88,0.00025547,120]
[343987153,1733169787118,-500.0,0.00025547,120]
[343987154,1733169787156,-1103.76,0.00025547,120]
[343987155,1733169787192,-500.0,0.00025547,120]
[343987156,1733169787227,-317.53,0.00025547,120]
[343987157,1733169787263,-1000.34,0.00025547,120]
[343987158,1733169787299,-500.0,0.00025547,120]
[343987159,1733169787335,-1289.89,0.00025547,120]
[343987160,1733169787371,-291.52,0.00025547,120]
[343987161,1733169787410,-2192.16,0.00025547,120]
[343987162,1733169787448,-500.0,0.00025547,120]
[343987163,1733169787487,-167.71,0.00025547,120]
[343987164,1733169787527,-500.0,0.00025547,120]
[343987165,1733169787568,-1228.74,0.00025547,120]
[343987166,1733169787609,-957.9,0.00025547,120]
[343987167,1733169787654,-780.49,0.00025547,120]
[343987168,1733169787694,-500.0,0.00025547,120]
[343987169,1733169787733,-2513.91,0.00025547,120]
[343987170,1733169787771,-500.0,0.00025547,120]
[343987171,1733169787809,-500.0,0.00025547,120]
[343987172,1733169787846,-1177.37,0.00025547,120]
[343987173,1733169787883,-500.0,0.00025547,120]
[343987174,1733169787923,-1711.39,0.00025547,120]
[343987175,1733169787961,-348.25,0.00025547,120]
[343987176,1733169787997,-500.0,0.00025547,120]
[343987177,1733169788033,-13756.05,0.00025547,120]
[343987178,1733169788067,-500.0,0.00025547,120]
[343987179,1733169788102,-1223.82,0.00025547,120]
[343987180,1733169788139,-19783.26,0.00025547,120]
[343987181,1733169788180,-814.1,0.00025547,120]
[343987182,1733169788217,-1144.32,0.00025547,120]
[343987183,1733169788253,-500.0,0.00025547,120]
[343987184,1733169788288,-566.12,0.00025547,120]
[343987185,1733169788324,-500.0,0.00025547,120]
[343987186,1733169788360,-500.0,0.00025547,120]
[343987187,1733169788396,-3463.96,0.00025547,120]
[343987188,1733169788438,-2471.59,0.00025547,120]
[343987189,1733169788479,-4111.41,0.00025547,120]
[343987190,1733169788521,-500.0,0.00025547,120]
[343987191,1733169788561,-593.51,0.00025547,120]
[343987192,1733169788601,-2015.47,0.00025547,120]
[343987193,1733169788645,-500.0,0.00025547,120]
[343987194,1733169788688,-2902.34,0.00025547,120]
[343987195,1733169788731,-21330.27,0.00025547,120]
[343987196,1733169788769,-500.0,0.00025547,120]
[343987197,1733169788808,-898.43,0.00025547,120]
[343987198,1733169788844,-3255.42,0.00025547,120]
[343987199,1733169788880,-500.56,0.00025547,120]
[343987200,1733169788924,-500.0,0.00025547,120]
[343987201,1733169788960,-938.21,0.00025547,120]
[343987202,1733169789386,-500.0,0.00025547,120]
[343987203,1733169789430,-599.12,0.00025547,120]
[343987204,1733169789471,-552.17824735,0.00025547,120]
[343987205,1733169789512,-500.0,0.00025547,120]
[343987206,1733169789551,-500.0,0.00025547,120]
[343987207,1733169789594,-3352.32,0.00025547,120]
[343987208,1733169789635,-354.72,0.00025547,120]
[343987209,1733169789677,-306.23,0.00025547,120]
[343987210,1733169789715,-768.34,0.00025547,120]
[343987211,1733169789754,-775.22,0.00025547,120]
[343987212,1733169789807,-500.0,0.00025547,120]
[343987213,1733169789856,-500.0,0.00025547,120]
[343987214,1733169789895,-500.0,0.00025547,120]
[343987215,1733169789935,-944.8,0.00025547,120]
[343987216,1733169789973,-1636.96,0.00025547,120]
[343987217,1733169790025,-1458.9,0.00025547,120]
[343987218,1733169790074,-500.0,0.00025547,120]
[343987219,1733169790122,-213.74,0.00025547,120]
[343987220,1733169790159,-670.62,0.00025547,120]
[343987221,1733169790201,-923.85,0.00025547,120]
[343987222,1733169790239,-500.0,0.00025547,120]
[343987223,1733169790277,-500.0,0.00025547,120]
[343987224,1733169790316,-698.71,0.00025547,120]
[343987225,1733169790354,-3466.98,0.00025547,120]
[343987226,1733169790393,-500.0,0.00025547,120]
[343987227,1733169790435,-500.0,0.00025547,120]
[343987228,1733169790473,-500.0,0.00025547,120]
[343987229,1733169790511,-1512.19,0.00025547,120]
[343987230,1733169790550,-500.0,0.00025547,120]
[343987231,1733169790590,-500.0,0.00025547,120]
[343987232,1733169790629,-592.57,0.00025547,120]
[343987233,1733169790667,-425.25012714,0.00025547,120]
[343987234,1733169790706,-6797.27,0.00025547,120]
[343987235,1733169790743,-1560.09,0.00025547,120]
[343987236,1733169790779,-676.63,0.00025547,120]
[343987237,1733169790816,-4584.49,0.00025547,120]
[343987238,1733169790851,-500.0,0.00025547,120]
[343987239,1733169790887,-500.0,0.00025547,120]
[343987240,1733169790925,-2820.52,0.00025547,120]
[343987241,1733169790962,-3000.0,0.00025547,120]
[343987242,1733169790999,-1361.04,0.00025547,120]
[343987243,1733169791037,-2781.44,0.00025547,120]
[343987244,1733169791072,-1258.23,0.00025547,120]
[343987245,1733169791111,-500.0,0.00025547,120]
[343987246,1733169791147,-500.0,0.00025547,120]
[343987247,1733169791186,-2650.17,0.00025547,120]
[343987248,1733169791222,-3300.64,0.00025547,120]
[343987249,1733169791259,-2017.79,0.00025547,120]
[343987250,1733169791295,-500.0,0.00025547,120]
[343987251,1733169791333,-1286.34,0.00025547,120]
[343987252,1733169791370,-1387.45,0.00025547,120]
[343987253,1733169791408,-3693.67,0.00025547,120]
[343987254,1733169791444,-500.0,0.00025547,120]
[343987255,1733169791483,-210.83,0.00025547,120]
[343987256,1733169791520,-3023.16,0.00025547,120]
[343987257,1733169791556,-1193.08,0.00025547,120]
[343987258,1733169791592,-500.0,0.00025547,120]
[343987259,1733169791631,-3240.77,0.00025547,120]
[343987260,1733169791671,-2236.02,0.00025547,120]
[343987261,1733169791709,-1679.56,0.00025547,120]
[343987262,1733169791745,-655.53,0.00025547,120]
[343987263,1733169791780,-500.0,0.00025547,120]
[343987264,1733169791816,-1614.33,0.00025547,120]
[343987265,1733169791852,-1505.75,0.00025547,120]
[343987266,1733169791887,-500.0,0.00025547,120]
[343987267,1733169791925,-500.0,0.00025547,120]
[343987268,1733169792066,-500.0,0.00025547,120]
[343987269,1733169792102,-500.0,0.00025547,120]
[343987270,1733169792138,-500.0,0.00025547,120]
[343987271,1733169792178,-500.0,0.00025547,120]
[343987272,1733169792216,-500.0,0.00025821,120]
[343987273,1733169792269,-679.68,0.00025821,120]
[343987274,1733169792312,-500.0,0.00025821,120]
[343987275,1733169792351,-500.0,0.00025821,120]
[343987276,1733169792392,-500.0,0.00025821,120]
[343987277,1733169792438,-526.93,0.00025821,120]
[343987278,1733169792477,-500.0,0.00025821,120]
[343987279,1733169792519,-2317.22,0.00025821,120]
[343987280,1733169792565,-500.0,0.00025821,120]
[343987281,1733169792611,-500.0,0.00025821,120]
[343987282,1733169792658,-586.50617424,0.00025821,120]
[343987283,1733169792699,-500.0,0.00025821,120]
[343987284,1733169792743,-500.0,0.00025821,120]
[343987285,1733169792783,-800.64,0.00025821,120]
[343987286,1733169792822,-1036.58,0.00025821,120]
[343987287,1733169792862,-633.81,0.00025821,120]
[343987288,1733169792903,-2205.66,0.00025821,120]
[343987289,1733169792942,-500.0,0.00025821,120]
[343987290,1733169792984,-1047.46,0.00025821,120]
[343987291,1733169793024,-5481.99,0.00025821,30]
[343987292,1733169793064,-758.69,0.00025821,120]
[343987293,1733169793105,-500.0,0.00025821,120]
[343987294,1733169793142,-1427.38,0.00025821,120]
[343987295,1733169793182,-500.0,0.00025821,120]
[343987296,1733169793220,-514.92,0.00025821,120]
[343987297,1733169793258,-500.0,0.00025821,120]
[343987298,1733169793299,-641.63,0.00025821,120]
[343987299,1733169793341,-500.0,0.00025821,120]
[343987300,1733169793383,-500.0,0.00025821,120]
[343987301,1733169793430,-500.0,0.00025821,120]
[343987302,1733169793471,-500.0,0.00025821,120]
[343987303,1733169793515,-1447.48,0.00025821,120]
[343987304,1733169793559,-4272.24,0.00025821,120]
[343987305,1733169793601,-560.78,0.00025821,120]
[343987306,1733169793648,-736.23,0.00025821,120]
[343987307,1733169793701,-667.49,0.00025821,120]
[343987308,1733169793744,-500.0,0.00025821,120]
[343987309,1733169793787,-844.39,0.00025821,120]
[343987310,1733169793831,-2263.66,0.00025821,120]
[343987311,1733169793873,-3364.95,0.00025821,120]
[343987312,1733169793917,-500.0,0.00025821,120]
[343987313,1733169793959,-2452.77,0.00025821,120]
[343987314,1733169794002,-563.29,0.00025821,120]
[343987315,1733169794044,-500.0,0.00025821,120]
[343987316,1733169794087,-500.0,0.00025821,120]
[343987317,1733169794128,-1715.81,0.00025821,120]
[343987318,1733169794169,-500.0,0.00025821,120]
[343987319,1733169794210,-539.85,0.00025821,120]
[343987320,1733169794252,-1059.98,0.00025821,120]
[343987321,1733169794295,-500.0,0.00025821,120]
[343987322,1733169794338,-2422.49,0.00025821,120]
[343987323,1733169794380,-500.0,0.00025821,120]
[343987324,1733169794421,-500.0,0.00025821,120]
[343987325,1733169794464,-1790.06,0.00025821,120]
[343987326,1733169794509,-500.0,0.00025821,120]
[343987327,1733169794553,-1103.76,0.00025821,120]
[343987328,1733169794596,-500.0,0.00025821,120]
[343987329,1733169794648,-1000.34,0.00025821,120]
[343987330,1733169794698,-500.0,0.00025821,120]
[343987331,1733169794739,-1289.89,0.00025821,120]
[343987332,1733169794780,-2192.16,0.00025821,120]
[343987333,1733169794823,-500.0,0.00025821,120]
[343987334,1733169794864,-492.92551173,0.00025821,120]
[343987335,1733169794908,-1228.74,0.00025821,120]
[343987336,1733169794949,-957.9,0.00025821,120]
[343987337,1733169794989,-780.49,0.00025821,120]
[343987338,1733169795036,-175.21,0.00025821,120]
[343987339,1733169795078,-2513.91,0.00025821,120]
[343987340,1733169795119,-500.0,0.00025821,120]
[343987341,1733169795166,-500.0,0.00025821,120]
[343987342,1733169795207,-1177.37,0.00025821,120]
[343987343,1733169795248,-566.09897287,0.00025821,120]
[343987344,1733169795288,-1711.39,0.00025821,120]
[343987345,1733169795328,-500.0,0.00025821,120]
[343987346,1733169795367,-13756.05,0.00025821,120]
[343987347,1733169795409,-500.0,0.00025821,120]
[343987348,1733169795450,-1223.82,0.00025821,120]
[343987349,1733169795490,-19783.26,0.00025821,120]
[343987350,1733169795530,-814.1,0.00025821,120]
[343987351,1733169795570,-1144.32,0.00025821,120]
[343987352,1733169795609,-500.0,0.00025821,120]
[343987353,1733169795654,-566.12,0.00025821,120]
[343987354,1733169795694,-500.0,0.00025821,120]
[343987355,1733169795734,-558.18562967,0.00025821,120]
[343987356,1733169795772,-3463.96,0.00025821,120]
[343987357,1733169795810,-2471.59,0.00025821,120]
[343987358,1733169795849,-4111.41,0.00025821,120]
[343987359,1733169795888,-550.33108516,0.00025821,120]
[343987360,1733169795931,-593.51,0.00025821,120]
[343987361,1733169795970,-2015.47,0.00025821,120]
[343987362,1733169796009,-2902.34,0.00025821,120]
[343987363,1733169796046,-21330.27,0.00025821,120]
[343987364,1733169796227,-354.29,0.00025821,120]
[343987365,1733169796268,-898.43,0.00025821,120]
[343987366,1733169796310,-3255.42,0.00025821,120]
[343987367,1733169796349,-500.56,0.00025821,120]
[343987368,1733169796389,-500.0,0.00025821,120]
[343987369,1733169796430,-938.21,0.00025821,120]
[343987370,1733169796469,-500.0,0.00025821,120]
[343987371,1733169796508,-599.12,0.00025821,120]
[343987372,1733169796548,-500.0,0.00025821,120]
[343987373,1733169796590,-500.0,0.00025821,120]
[343987374,1733169796634,-3352.32,0.00025821,120]
[343987375,1733169796677,-768.34,0.00025821,120]
[343987376,1733169796721,-775.22,0.00025821,120]
[343987377,1733169796763,-500.0,0.00025821,120]
[343987378,1733169796803,-500.0,0.00025821,120]
[343987379,1733169796840,-500.0,0.00025821,120]
[343987380,1733169796881,-944.8,0.00025821,120]
[343987381,1733169796923,-1636.96,0.00025821,120]
[343987382,1733169796965,-1458.9,0.00025821,120]
[343987383,1733169797009,-500.0,0.00025821,120]
[343987384,1733169797048,-670.62,0.00025821,120]
[343987385,1733169797088,-923.85,0.00025821,120]
[343987386,1733169797132,-500.0,0.00025821,120]